Workbook

Sheet Budget Overview
B1: 2020 Actuals thru 9/30/2020 | C1: 2020 Budget | D1: Scenario #1: In person worship | E1: Scenario #2:Remote worship | F1: Bryer Fund / Special Fund | G1: Notes
A2: Income
A3: 1 General Giving | B3: =230824.26 -> 230824.26 | C3: =250000 -> 250000 | D3: 320000 | E3: 320000 | G3: Average monthly donations for period of pandemic x 12 = expected total for 2020 ($320,890)
A4: Facilities & Use | B4: =13487.5+780 -> 14267.5 | C4: =15000 -> 15000 | D4: 10000 | E4: 300 | G4: Donations 4/1/2020 -9/30/2020 equaled $4720.00
A5: Flower Income | B5: =690 -> 690 | C5: =2080 -> 2080
A6: Hospitality | B6: =495.25 -> 495.25 | C6: =1000 -> 1000 | D6: 1000 | G6: Coffee hour income
A7: Lenten project | B7: =4020 -> 4020 | G7: This was a one-time project in 2020
A8: Safe Car Park | B8: =135.42 -> 135.42
A9: Total Income | B9: =sum(B3:B8) -> 250432.43 | C9: =((((C3)+(C4))+(#REF!))+(C5))+(C6) -> #REF! | D9: =SUM(D3:D8) -> 331000 | E9: 320300
A10: Gross Profit | B10: =(B9)-(0) -> 250432.43 | C10: #REF!
A12: Expenses
A13: Benevolences
A14: Conference Support | B14: =75 -> 75 | C14: 75 | D14: 75 | E14: 75 | G14: These are membership support for the El Camino Real Conference of our synod
A15: Hospitality | B15: =586.53 -> 586.53 | C15: =1000 -> 1000 | D15: 500 | G15: This funds our coffee hour supplies, birthday cakes, and other hospitality needs
A16: Pastor's Discretion | B16: =525.18 -> 525.18 | C16: =2000 -> 2000 | D16: 2000 | E16: 2000 | G16: This is emergency funding for those who ask CGS for assistance
A17: Pride | C17: =1000 -> 1000 | D17: 1000 | E17: 1000
A18: Safe Car Park | B18: =1689.34 -> 1689.34 | D18: 750 | E18: 750 | G18: This anticipates needed outside cleaning services for bathrooms, add'l insurance for program
A19: Shelter Cooking | B19: =1393.99 -> 1393.99 | C19: =2250 -> 2250 | D19: 2250 | E19: 2250 | G19: This funds meals delivered and/or prepared
A20: Synod Support | B20: =18664 -> 18664 | C20: =25000 -> 25000 | D20: =+D3*0.1 -> 32000 | E20: 32000 | G20: We plan to give 10% of actual general giving
A21: Total Benevolences | B21: =SUM(B14:B20) -> 22934.04 | C21: 31325 | D21: 38575 | E21: 38075
A22: Education
A23: Adult Education | C23: =1000 -> 1000 | D23: 2356 | E23: 2356 | G23: Funds include anti-racism training
A24: Children & Youth Ministry | B24: =266.86 -> 266.86 | C24: =900 -> 900 | D24: 400 | E24: 400 | F24: 400 | G24: This will fund catechism curriculum & supplies and is funded from the Bryer fund.
A25: Education Supplies | B25: -30 | C25: =1000 -> 1000 | D25: 500 | F25: 500 | G25: This will fund curriculum & supplies Godly Play, Jesus & Me & is funded from Bryer
A26: Library:
A27: Books and Supplies | D27: 3000 | G27: This will fund more bookshelves and furniture in addition to more books
A28: Local Speakers | D28: 1000 | E28: 1000 | G28: This will fund more local speakers on current issues
A29: Out of Town Speakers | D29: 2000 | E29: 2000 | G29: This will fund more out of town speakers on current issues
A30: Total Library | B30: 412.1 | C30: =SUM(C27:C29) -> 0 | D30: 6000 | E30: 3000 | F30: 6000/3000 | G30: All library funds are still drawn from our historical restricted Bryer fund
A31: Scholarships | B31: 175 | C31: =300 -> 300
A32: Total Education | B32: =+B23+B24+B25+B30+B31 -> 823.96 | C32: 3200 | D32: 9256 | E32: 5756 | F32: 6900/3900
A33: Leadership
A34: Accountant | B34: 9000 | C34: =12000 -> 12000 | D34: 12000 | E34: 12000
A35: Administrative Support | B35: 9362.41 | C35: =13717 -> 13717 | D35: 14561 | E35: 13771 | G35: This funds our copier, office supplies, mailings, postage, web hosting, etc.
A36: Background Checks | C36: =50 -> 50 | D36: 50 | E36: 50
A37: Payment processing service fees | B37: 1576.36 | C37: =25 -> 25 | D37: 2000 | E37: 2000 | G37: Amount includes all bank & online fees for our different methods of giving
A38: Council Expense | B38: =56.67 -> 56.67 | C38: =500 -> 500 | D38: 800 | G38: This funds our annual council retreats
A39: Leadership Training | B39: =50 -> 50 | C39: 500 | D39: 300 | E39: 300 | G39: This funds continued training and equipping of congregational leaders.
A40: Synod Assembly | B40: =0 -> 0 | C40: =1500 -> 1500 | D40: 1500 | E40: 1500 | G40: This funds the travel, lodging, and registration of our synod assembly participation.
A41: Total Leadership | B41: =SUM(B34:B40) -> 20045.44 | C41: 28292 | D41: 31211 | E41: 29621
A42: Personnel
A43: Auto Allowance -Pastor | B43: =538.08 -> 538.08 | C43: =1500 -> 1500 | D43: 1500 | E43: 500
A44: Health Insurance-Pastor | B44: =8346.96 -> 8346.96 | C44: =11703.72 -> 11703.72 | D44: 11297 | E44: 11297
A45: Health Ins Allowance-Office Mgr | D45: 6000 | E45: 6000 | G45: Is included in office manager's wages as a stipend-drawn out here for visibility
A46: Pastor's Continuing Education | B46: 150 | C46: =1000 -> 1000 | D46: 700 | E46: 700
A47: Payroll Expenses | B47: 1279.38 | C47: =2860 -> 2860 | D47: 1700 | E47: 1700 | G47: These are monthly Intuit (quickbooks) payroll fees
A48: Retiree Support-Pastor | B48: =6441.51 -> 6441.51 | C48: =8205.68 -> 8205.68 | D48: 9954 | E48: 9954
A49: Housing Equity | D49: 2986 | E49: 2986 | G49: When Pastor is in a parsonage, 3% housing equity is given to assist in purchase of a home upon retirement
A50: Taxes | B50: 8350 | C50: =23623.78 -> 23623.78 | D50: 12500 | E50: 12500 | G50: Payroll taxes for all employees
A51: Other | B51: =375+1798.85 -> 2173.85 | G51: Includes previously combined categories of staff gift, cal chamber, supplies, misc. continuing ed.
A52: Wages | B52: 156456 | C52: =206104.66 -> 206104.66 | G52: In 2020, there was no breakdown in wages by staff position
A53: Pastor | D53: 69677 | E53: 69677 | G53: Based on Synod compensation guidelines
A54: Pastor Jared | G54: From Synod funds and donations
A55: Pastor Sabbatical | G55: $9600 Defer to 2022 Budget
A56: Office Manager | D56: 57564 | E56: 57564 | G56: Assumes a 2.5% increase over 2020 budget
A57: Church Musician | D57: 30613 | E57: 30613 | G57: Assumes a 2.5% increase over 2020 budget
A58: Choir Director | D58: 11662 | E58: 11662 | G58: Assumes a 2.5% increase over 2020 budget
A59: Housekeeper | D59: 19785 | E59: 19785 | G59: Assumes a 2.5% increase over 2020 budget
A60: Sexton | D60: 6458 | E60: 6458 | G60: Assumes a 2.5% increase over 2020 budget
A61: Nursery Attendant | D61: 1817 | F61: 1817 | G61: This staff position is funded by the Bryer Fund (section: Sunday School)
A62: CalChamber/Hr CA Subscription | D62: 349 | E62: 349 | G62: This subscription is used by the personnel committee for compliance
A63: WC Insurance | B63: 1792.3 | C63: =954.51 -> 954.51 | D63: 2500 | E63: 2500
A64: Remote-Internet Subsidy | E64: 2700 | G64: This figure = 3 employees x $75/month x 12 months
A65: Total Personnel | B65: =SUM(B43:B64) -> 185528.08 | C65: 255952.35 | D65: 247062 | E65: 246945
A66: Property
A67: Disposal | B67: =4162.88 -> 4162.88 | C67: =5000 -> 5000 | D67: =+C67*1.05 -> 5250 | E67: =+C67*1.05 -> 5250 | G67: Anticipated 5% increase over 2020 budget
A68: Electric | B68: =6009.47 -> 6009.47 | C68: =5500 -> 5500 | D68: 5775 | E68: 5775 | G68: Anticipated 5% increase over 2020 budget
A69: Gas | B69: =47.19 -> 47.19 | C69: =4000 -> 4000 | D69: 4200 | E69: 4200 | G69: Anticipated 5% increase over 2020 budget
A70: Janitorial Expense | B70: =577.29 -> 577.29 | C70: =1000 -> 1000 | D70: 1050 | E70: 1050 | G70: Anticipated 5% increase over 2020 budget
A71: Landscaping | C71: =500 -> 500 | D71: 525 | E71: 525 | G71: Anticipated 5% increase over 2020 budget
A72: Maintenance | B72: =3666.53 -> 3666.53 | C72: =14700 -> 14700 | D72: =+C72*1.05+6000 -> 21435 | E72: =+C72*1.05+6000 -> 21435 | G72: Anticipated 5% increase over 2020 budget plus needed parsonage repairs
A73: Property Taxes/Insurance | B73: =8548.75 -> 8548.75 | C73: =11200 -> 11200 | D73: =+C73*1.05 -> 11760 | E73: =+C73*1.05 -> 11760 | G73: Anticipated 5% increase over 2020 budget
A74: Telephone | B74: =2328.47 -> 2328.47 | C74: =2000 -> 2000 | D74: 2100 | E74: 2100 | G74: Anticipated 5% increase over 2020 budget
A75: Water | B75: =2422.8 -> 2422.8 | C75: =3500 -> 3500 | D75: 3675 | E75: 3675 | G75: Anticipated 5% increase over 2020 budget
A76: Total Property | B76: =SUM(B67:B75) -> 27763.38 | C76: 47400 | D76: 55770 | E76: 55770
A77: Worship & Music Ministry
A78: Association Fees | D78: 300 | E78: 300 | G78: This covers membership fees for the ALCM
A79: Choir:
A80: Choral Music | B80: =174.75+16 -> 190.75 | C80: =424.8 -> 424.8 | D80: 425 | E80: 283 | G80: Average of one new music for each choir x 6
A81: Travel and Outreach | D81: 250 | G81: Keynotes outreach
A82: Training and Workshops | D82: 425 | G82: Choir workshop/vocal clinic; ASCA Membership
A83: Choir Supplies | B83: 30 | D83: 100 | G83: Folders, lights, accessories for cantatas/concerts
A84: Video/Audio Apps & License | E84: 300 | G84: Equipment needed for choir videos
A85: Total Choir Expense | B85: =SUM(B80:B84) -> 220.75 | C85: 424.8 | D85: 1200 | E85: 583
A86: Columbarium | B86: 570.85 | C86: =500 -> 500 | G86: 10 new urns were purchased in 2020 and no new purchases are anticipated
A87: Drummer | B87: 2070 | C87: =3760 -> 3760 | D87: 4750 | G87: This figure funds a drummer for 50 weeks @ $95 each week
A88: Flowers | B88: 830.3 | C88: =2262 -> 2262 | D88: =45*52-2080 -> 260 | G88: Sunday flowers are never fully covered by donations. There is always an expense to the church.
A89: Guest Musicians | C89: =800 -> 800 | D89: 700 | G89: This anticipates additional musicians for special occasions
A90: Instruments | C90: =1000 -> 1000 | D90: 1500 | G90: Piano Tunings, maintenance
A91: Pulpit Supply | B91: 700 | C91: =3000 -> 3000 | D91: =275*6 -> 1650 | E91: 1650 | G91: This figure assumes $275 x 6 worship services for supply preaching
A92: Substitute Musician | C92: =700 -> 700 | D92: 700 | G92: This figure assumes 4 Sunday substitutions @ $175 per Sunday
A93: Worship Music | B93: 736.33 | C93: =900 -> 900 | D93: 950 | E93: 950 | G93: This figures covers all current licenses plus $125 for add'l music
A94: Worship Supplies | B94: 3786.11 | C94: =2000 -> 2000 | D94: 2000 | G94: This figure covers supplies for in-person worship (candles, wafers, etc)
A95: Total Worship & Music Ministry | B95: =SUM(B85:B94)+B78 -> 8914.34 | C95: 15346.8 | D95: 14010 | E95: 3483
A96: Total Expenses | B96: =+B95+B76+B65+B41+B32+B21 -> 266009.24 | C96: 381516.15 | D96: 395884 | E96: 379650
A98: Net Operating Income | B98: =+B9-B96 -> -15576.81 | C98: #REF! | D98: -64884 | E98: -59350 | F98: 8717/5717
A101: Other Income
A102: Change in Value of Account | B102: =66422.79 -> 66422.79 | C102: =20000 -> 20000 | G102: Total investment gain in 2020 as of 10/1/2020 is $63,385. This will change before the end of the year!
A103: Other Giving | B103: 2991 | G103: This is an adjustment in accounting going back to 2018
A104: St. John's Gift | B104: 95000 | G104: This is a one-time donation from St. John's Lutheran in Sunnyvale
A105: Total Other Income | B105: =SUM(B102:B104) -> 164413.79 | C105: =C102 -> 20000
A106: Net Other Income | B106: =+B105 -> 164413.79 | C106: =(C105)-(0) -> 20000 | D106: 0 | E106: 0
A108: Other Expenses
A109: Depreciation Expense | B109: =3259.71 -> 3259.71 | C109: This is a noncash expense | G109: This is explained in accompanying letter
A110: Interest Expense | B110: =30.14 -> 30.14 | C110: Interest on $10K PPP loan | G110: This what we have paid so far on our PPP loan
A111: Total Other Expenses | B111: =((B109)+(B110)) -> 3289.85
A113: Net Income | B113: =+B98+B105-B111 -> 145547.13 | C113: #REF! | D113: -64884 | E113: -59350 | F113: 8717/5717
